Cogmind - Beta 10.2 @@@ ROGUE MODE // 2021.08.05 @ 11:58:42 Player: urinsekt Result: Destroyed by S-27 Virus with Autogun Performance ------------- Evolutions (4) 2000 Regions Visited (6) 1200 Robots Destroyed (10) 50 Value Destroyed (277) 277 Prototype IDs (3) 60 Alien Tech Used (0) 0 Bonus (0) 0 TOTAL SCORE: 3587 Bonus ------- None Cogmind --------- Core Integrity 0/850 Matter 242/300 Energy 100/100 System Corruption 0% Temperature Cool (0) Movement Core (50) Location -6/Factory Parts ------- > --- POWER (2) -------- (None) > --- PROPULSION (4) --- (None) > --- UTILITY (5) ------ (None) > --- WEAPON (4) ------- Maul > --- INVENTORY (4) ---- Improved Deuterium Engine Small Storage Unit Improved Signal Interpreter Transmission Jammer Peak State ------------ > --- POWER ------------ (None) > --- PROPULSION ------- VTOL Module VTOL Module > --- UTILITY ---------- Advanced Terrain Scanner > --- WEAPON ----------- Improved Lightning Gun High-powered Shotgun Improved Datajack > --- INVENTORY -------- Small Storage Unit Improved Signal Interpreter Transmission Jammer Mini Grenade Launcher [Rating: 19] Favorites ----------- Power Ion Engine Engine Ion Engine Propulsion Wheel Treads Light Treads Wheel Wheel Flight Unit VTOL Module Utility Small Storage Unit Device Advanced Terrain Scanner Storage Small Storage Unit Processor Signal Interpreter Protection Weapon Shielding Weapon EM Pulse Gun Energy Gun EM Pulse Gun Ballistic Gun Assault Rifle Launcher Rocket Launcher Impact Weapon Maul Special Melee Weapon Improved Datajack Build | -11 -10 -10 -9 -8 -7 -6 ------- Run | Scr Mat Min Mat Mat Fac Fac Slots Evolved 8 | . . . 2 2 2 2 Power 1 | . . . . . 1 . Propulsion 2 | . . . . 2 . . Utility 3 | . . . . . 1 2 Weapon 2 | . . . 2 . . . Parts Attached 32 | 4 5 . 9 2 2 10 Power 1 | . 1 . . . . . Engine 1 | . 1 . . . . . Core . | . . . . . . . Reactor . | . . . . . . . Propulsion 9 | 2 . . 6 . . 1 Treads 1 | . . . . . . 1 Leg . | . . . . . . . Wheel 2 | 2 . . . . . . Hover . | . . . . . . . Flight 6 | . . . 6 . . . Utility 13 | 1 3 . 2 2 . 5 Device 5 | . . . 1 2 . 2 Storage 3 | 1 1 . 1 . . . Processor 1 | . 1 . . . . . Hackware . | . . . . . . . Protection 4 | . 1 . . . . 3 Artifact . | . . . . . . . Weapon 9 | 1 1 . 1 . 2 4 Energy Gun 2 | . 1 . . . . 1 Energy Cannon . | . . . . . . . Ballistic Gun 3 | 1 . . . . 1 1 Ballistic Cannon . | . . . . . . . Launcher 2 | . . . 1 . . 1 Special Weapon . | . . . . . . . Impact Weapon 1 | . . . . . . 1 Slashing Weapon . | . . . . . . . Piercing Weapon . | . . . . . . . Special Melee Weapon 1 | . . . . . 1 . Unidentified Prototypes 1 | . . . . . . 1 Parts Lost 18 | . 1 . 2 . 2 13 Power 1 | . . . . . 1 . Propulsion 4 | . . . 1 . . 3 Utility 8 | . 1 . . . 1 6 Weapon 5 | . . . 1 . . 4 Highest Loss Streak 6 | . 1 . 2 . 1 6 Average Slot Usage (%) 61 | . 96 100 67 42 47 20 Engine 8 | . 14 14 11 9 6 . Wheel 10 | . 28 28 8 . . . Flight 7 | . . . 11 18 15 3 Device 4 | . . . . 10 13 2 Storage 5 | . 14 14 5 . . . Processor 2 | . 8 . . . . . Protection 3 | . 2 14 11 4 . 1 Energy Gun 6 | . 14 14 10 . . . Ballistic Gun 7 | . 14 14 5 . 3 4 Special Melee Weapon 2 | . . . . . 7 3 Naked Turns 30 | . . . . . . 30 Heaviest Build 30 | 6 26 26 30 7 11 22 Greatest Support 20 | 3 20 20 20 10 10 20 Greatest Overweight (x) 9 | 1 4 1 9 . 2 7 Average Overweight (x) . | . . 1 . . . . Largest Inventory Capacity 10 | 6 10 10 10 4 4 4 Average Capacity 5 | 5 6 10 7 4 4 4 Most Carried 8 | 4 6 5 8 4 4 4 Average Carried 3 | 2 3 5 4 3 4 3 Final Capacity 10 | 6 10 10 4 4 4 4 Final Carried 5 | 4 5 5 4 4 4 4 Class Distribution -------------------- 100% | Mutant Dominant Class ---------------- Mutant | -10/Materials Mutant | -10/Mines Mutant | -9/Materials Mutant | -8/Materials Mutant | -7/Factory Mutant | -6/Factory Resources | -11 -10 -10 -9 -8 -7 -6 ----------- Run | Scr Mat Min Mat Mat Fac Fac Matter Collected 460 | 200 62 24 91 . . 83 Remotely . | . . . . . . . Salvage Created 334 | . 96 . 132 . . 106 Parts 27 | . 7 . 14 . . 6 Haulers Intercepted . | . . . . . . . Recyclers Shooed . | . . . . . . . Parts Field Recycled . | . . . . . . . Retrieved Matter . | . . . . . . . Parts Self-Destructed . | . . . . . . . Prevented . | . . . . . . . Kills | -11 -10 -10 -9 -8 -7 -6 ------- Run | Scr Mat Min Mat Mat Fac Fac Combat Hostiles Destroyed 10 | . 3 . 5 . . 2 Guns 9 | . 3 . 5 . . 1 AOE 1 | . . . . . . 1 Classes Destroyed 4 | . 2 . 1 . . 1 Swarmer 5 | . 1 . 4 . . . Grunt 2 | . 2 . . . . . Duelist 1 | . . . . . . 1 Sentry 2 | . . . 1 . . 1 Best Kill Streak 5 | . 2 . 5 . . 1 Combat Bots Only 5 | . 2 . 5 . . 1 Max Kills in Single Turn 1 | . 1 . 1 . . 1 Gunslinging . | . . . . . . . Exploded 1 | . . . . . . 1 Melee . | . . . . . . . Uniques/NPCs Destroyed . | . . . . . . . Combat | -11 -10 -10 -9 -8 -7 -6 -------- Run | Scr Mat Min Mat Mat Fac Fac Damage Taken 2579 | . 42 15 200 138 134 2050 Core 1036 | . . . 74 62 46 854 Absorbed by Shields . | . . . . . . . Core Remaining (%) 92 | 100 . 100 81 88 93 . Volleys Fired 18 | . 7 . 7 . . 4 Largest 2 | . 2 . 2 . . 2 Hottest 60 | . 60 . 60 . . 58 Shots Fired 35 | . 14 . 14 . . 7 Gun 32 | . 14 . 14 . . 4 Cannon . | . . . . . . . Launcher 3 | . . . . . . 3 Special . | . . . . . . . Kinetic 18 | . 7 . 7 . . 4 Thermal . | . . . . . . . Explosive 3 | . . . . . . 3 Electromagnetic 14 | . 7 . 7 . . . Robot Hit Streak 8 | . 8 . 4 . . 6 Robot Miss Streak 2 | . 1 . 2 . . 2 Penetration Max . | . . . . . . . Secondary Targets . | . . . . . . . Shots Hit Robots 30 | . 12 . 8 . . 10 Core Hits 18 | . 5 . 6 . . 7 Critical Hits 1 | . . . . . . 1 Critical Kills 1 | . . . . . . 1 Critical Parts Destroyed . | . . . . . . . Melee Attacks 4 | . . . . . . 4 Impact 2 | . . . . . . 2 Slashing . | . . . . . . . Piercing . | . . . . . . . Sneak Attacks 2 | . . . . . . 2 Combat Hostiles . | . . . . . . . Follow-up Attacks . | . . . . . . . Damage Inflicted 531 | . 154 . 97 . . 280 Guns 325 | . 154 . 97 . . 74 Cannons . | . . . . . . . Explosions 170 | . . . . . . 170 Melee 36 | . . . . . . 36 Ramming . | . . . . . . . Kinetic 192 | . 66 . 52 . . 74 Thermal . | . . . . . . . Explosive 170 | . . . . . . 170 Electromagnetic 133 | . 88 . 45 . . . Impact 36 | . . . . . . 36 Slashing . | . . . . . . . Piercing . | . . . . . . . Highest Corruption . | . . . . . . . Average Corruption . | . . . . . . . Corruption Purged . | . . . . . . . Overload Shots . | . . . . . . . Overflow Damage . | . . . . . . . Projectiles . | . . . . . . . Explosions . | . . . . . . . Melee . | . . . . . . . Knockbacks . | . . . . . . . Impact . | . . . . . . . Kinetic . | . . . . . . . Secondary . | . . . . . . . Self-Inflicted Damage 96 | . . . . . . 96 Shots 2 | . . . . . . 2 Rammed 1 | . . . . . . 1 Targets Rammed 1 | . . . . . . 1 Kicked . | . . . . . . . Crushed . | . . . . . . . Highest Temperature 32 | . 32 . . . . . Average Temperature 20 | . 20 . . . . . Received Heat Transfer 531 | . 18 9 51 54 69 330 Siege Activations . | . . . . . . . Robots Corrupted . | . . . . . . . Combat Hostiles . | . . . . . . . Parts Fried . | . . . . . . . Impact Corruptions . | . . . . . . . Robots Melted . | . . . . . . . Combat Hostiles . | . . . . . . . Parts Melted . | . . . . . . . Heat Transferred . | . . . . . . . Parts Sabotaged . | . . . . . . . Parts Stolen . | . . . . . . . Parts Stripped . | . . . . . . . Power Chain Reactions . | . . . . . . . Missiles Intercepted . | . . . . . . . Alert | -11 -10 -10 -9 -8 -7 -6 ------- Run | Scr Mat Min Mat Mat Fac Fac Peak Influence 291 | . 110 42 291 167 109 181 Initial 122 | . . 42 16 122 75 53 Average 84 | . 33 42 151 138 96 107 Maximum Alert Level 1 | . . . 1 . . . Low Security (%) 94 | 100 100 100 61 100 100 100 Level 1 5 | . . . 38 . . . Level 2 . | . . . . . . . Level 3 . | . . . . . . . Level 4 . | . . . . . . . Level 5 . | . . . . . . . High Security . | . . . . . . . Max Security . | . . . . . . . Squads Dispatched 9 | . 3 . 1 3 2 . Investigation 4 | . . . 1 1 2 . Extermination . | . . . . . . . Reinforcement 5 | . 3 . . 2 . . Assault . | . . . . . . . Garrison . | . . . . . . . Intercept . | . . . . . . . Construction Impeded . | . . . . . . . Haulers Reinforced . | . . . . . . . Stealth | -11 -10 -10 -9 -8 -7 -6 --------- Run | Scr Mat Min Mat Mat Fac Fac Distress Signals 5 | . 1 . 2 1 . 1 Communications Jammed . | . . . . . . . Distress Signals . | . . . . . . . Times Spotted 56 | . 7 2 14 12 4 17 Peak Tracking Total 18 | . 5 2 8 18 4 8 Tactical Retreats 6 | . 1 . 2 . 1 2 Traps | -11 -10 -10 -9 -8 -7 -6 ------- Run | Scr Mat Min Mat Mat Fac Fac Traps Triggered 1 | . . . . 1 . . Indirectly . | . . . . . . . Trap Hack Attempts . | . . . . . . . Triggered . | . . . . . . . Disarmed . | . . . . . . . Reprogrammed . | . . . . . . . Reused . | . . . . . . . Traps Extracted . | . . . . . . . Installed . | . . . . . . . Triggered . | . . . . . . . Machines | -11 -10 -10 -9 -8 -7 -6 ---------- Run | Scr Mat Min Mat Mat Fac Fac Machines Disabled 1 | . . . 1 . . . Max in Single Turn 1 | . . . 1 . . . Machines Sabotaged . | . . . . . . . Garrisons Compromised . | . . . . . . . Overloaded Fab Kills . | . . . . . . . Fab Network Shutdowns . | . . . . . . . Hacking | -11 -10 -10 -9 -8 -7 -6 --------- Run | Scr Mat Min Mat Mat Fac Fac Machines Accessed 7 | . 1 . 3 1 2 . Terminals 5 | . . . 3 1 1 . Fabricators . | . . . . . . . Repair Stations 1 | . . . . . 1 . Recycling Units 1 | . 1 . . . . . Scanalyzers . | . . . . . . . Garrison Access . | . . . . . . . Total Hacks 19 | . 3 . 9 1 6 . Successful 12 | . 3 . 7 . 2 . Failed 7 | . . . 2 1 4 . Catastrophic 4 | . . . 1 1 2 . Database Lockouts . | . . . . . . . Manual . | . . . . . . . Terminals 13 | . . . 9 1 3 . Fabricators . | . . . . . . . Repair Stations 3 | . . . . . 3 . Recycling Units 3 | . 3 . . . . . Scanalyzers . | . . . . . . . Garrison Access . | . . . . . . . Terminal Hacks 7 | . . . 7 . . . Record 1 | . . . 1 . . . Prototype ID Bank 1 | . . . 1 . . . Terminal Index 1 | . . . 1 . . . Alert Level 1 | . . . 1 . . . Dispatch Records 1 | . . . 1 . . . Registered Components 1 | . . . 1 . . . Zone Layout 1 | . . . 1 . . . Fabricator Hacks . | . . . . . . . Repair Station Hacks 2 | . . . . . 2 . Scan Component 2 | . . . . . 2 . Recycling Unit Hacks 3 | . 3 . . . . . Process 1 | . 1 . . . . . Report Inventory 1 | . 1 . . . . . Retrieve Components 1 | . 1 . . . . . Scanalyzer . | . . . . . . . Garrison Access Hacks . | . . . . . . . Unauthorized Hacks . | . . . . . . . Terminals . | . . . . . . . Fabricators . | . . . . . . . Repair Stations . | . . . . . . . Recycling Units . | . . . . . . . Scanalyzers . | . . . . . . . Garrison Access . | . . . . . . . Data Cores Recovered . | . . . . . . . Used . | . . . . . . . Hacking Detections 7 | . 1 . 3 1 2 . Full Trace Events 3 | . . . 1 . 2 . Feedback Events . | . . . . . . . Feedback Blocked . | . . . . . . . Robot Schematics Acquired . | . . . . . . . Robots Built . | . . . . . . . Matter . | . . . . . . . Time . | . . . . . . . Total Robot Build Rating . | . . . . . . . Part Schematics Acquired . | . . . . . . . Parts Built . | . . . . . . . Matter . | . . . . . . . Time . | . . . . . . . Total Part Build Rating . | . . . . . . . Parts Repaired . | . . . . . . . Time . | . . . . . . . Parts Recycled . | . . . . . . . Recycled Matter . | . . . . . . . Retrieved Matter . | . . . . . . . Retrieved Components 3 | . 3 . . . . . Parts Scanalyzed . | . . . . . . . Part Schematics Acquired . | . . . . . . . Parts Damaged . | . . . . . . . Bothacking | -11 -10 -10 -9 -8 -7 -6 ------------ Run | Scr Mat Min Mat Mat Fac Fac Used RIF Installer . | . . . . . . . Robots Hacked . | . . . . . . . Non-combat . | . . . . . . . Combat . | . . . . . . . Robot Hacks Applied . | . . . . . . . Relay Couplers Released . | . . . . . . . Robots Rewired . | . . . . . . . Allies Hacked . | . . . . . . . Hacks Repelled . | . . . . . . . Allies | -11 -10 -10 -9 -8 -7 -6 -------- Run | Scr Mat Min Mat Mat Fac Fac Total Allies . | . . . . . . . Largest Group . | . . . . . . . Highest-Rated Group . | . . . . . . . Highest-Rated Ally . | . . . . . . . Total Orders . | . . . . . . . Ally Attacks . | . . . . . . . Total Damage . | . . . . . . . Kills . | . . . . . . . Allies Corrupted . | . . . . . . . Allies Melted . | . . . . . . . Intel | -11 -10 -10 -9 -8 -7 -6 ------- Run | Scr Mat Min Mat Mat Fac Fac Robot Analysis Total . | . . . . . . . Derelict Logs Recovered . | . . . . . . . Drone Launches . | . . . . . . . Drone Recoveries . | . . . . . . . Exploration | -11 -10 -10 -9 -8 -7 -6 ------------- Run | Scr Mat Min Mat Mat Fac Fac Turns Passed 1150 | 54 353 19 176 59 262 227 Spaces Moved 1193 | 46 199 22 244 145 231 306 Core 156 | 46 4 . 2 . . 104 Treads 14 | . . . . . . 14 Legs . | . . . . . . . Wheels 263 | . 195 22 46 . . . Hover . | . . . . . . . Flight 760 | . . . 196 145 231 188 Fastest Speed 37 | 50 80 90 37 37 37 40 Average Speed 71 | 91 84 90 50 37 112 60 Slowest Speed 500 | 100 250 90 500 37 200 400 Overloaded Moves . | . . . . . . . Propulsion Burnouts . | . . . . . . . Robots Hopped 6 | . . . 4 2 . . Cave-ins Triggered . | . . . . . . . Exploration Rate (%) 17 | 3 36 10 36 17 10 9 Regions Visited 6 Branch Regions 1 Pre-discovered Areas . | . . . . . . . Known Exits Taken . | . . . . . . . Unknown Exits Taken 6 | 1 1 1 1 1 1 . Scrap Searched 1 | . . 1 . . . . Spaces Dug . | . . . . . . . Terrain Destroyed 32 | . . . . . . 32 Melee . | . . . . . . . Projectile . | . . . . . . . AOE 32 | . . . . . . 32 Terrain Rammed . | . . . . . . . Walls Destroyed . | . . . . . . . Machines Disabled . | . . . . . . . Actions | -11 -10 -10 -9 -8 -7 -6 --------- Run | Scr Mat Min Mat Mat Fac Fac Total 1443 | 57 369 21 285 148 232 331 Wait 158 | . 150 . 4 . . 4 Move 1176 | 45 198 21 236 140 230 306 Hop 5 | . . . 3 2 . . Pick Up 26 | 8 7 . 8 2 . 1 Fast Attach 13 | . . . 1 1 2 9 Attach 14 | 4 4 . 4 1 . 1 Detach 4 | . . . 4 . . . Swap 5 | . 1 . 4 . . . Drop 19 | . 2 . 14 2 . 1 Fire 18 | . 7 . 7 . . 4 Melee 4 | . . . . . . 4 Ram 1 | . . . . . . 1 Kick . | . . . . . . . Crush . | . . . . . . . Escape Stasis . | . . . . . . . Rewire . | . . . . . . . Trap . | . . . . . . . Miscellaneous . | . . . . . . . Route ------- -11/Scrapyard -10/Materials -10/Mines -9/Materials -8/Materials (discovered 2 exits: *Fac / [*Sto]) -7/Factory -6/Factory History --------- Turn | Location | Event 4 | -11/Scrapyard | Discovered new exit (range 15) 55 | -11/Scrapyard | Entered Materials 316 | -10/Materials | Build established: Mutant 338 | -10/Materials | Discovered new exit (range 16) 408 | -10/Materials | Entered Mines 422 | -10/Mines | Discovered new exit (range 6) 427 | -10/Mines | Entered Materials 427 | -9/Materials | Evolved 2 slots: Weapon x2 599 | -9/Materials | Discovered new exit (range 11) 603 | -9/Materials | Entered another Materials area 603 | -8/Materials | Evolved 2 slots: Propulsion x2 604 | -8/Materials | Discovered new exit (range 10) 657 | -8/Materials | Discovered new exit (range 16) 662 | -8/Materials | Entered Factory 662 | -7/Factory | Evolved 2 slots: Power x1, Utility x1 918 | -7/Factory | Discovered new exit (range 8) 924 | -7/Factory | Entered another Factory area 924 | -6/Factory | Evolved 2 slots: Utility x2 1039 | -6/Factory | Lost 3 parts (2n1u) 1108 | -6/Factory | Core integrity fell below 50% 1118 | -6/Factory | Lost 6 parts (1n1u4w) 1145 | -6/Factory | Core integrity fell below 20% 1151 | -6/Factory | Destroyed by S-27 Virus with Autogun Last Messages --------------- L-41 Fighter destroyed. Imp. Datajack destroyed. Mni. Grenade Launcher destroyed. Flak Gun destroyed. Lgt. Treads destroyed. The unstable cave ceiling collapses. Acquired Imp. Medium Armor Plating. Acquired Thermal Shield. Acquired Force Field. Slammed into S-27 Virus. Destabilizing: System interference. Thermal Shield temporarily disabled. W-25 Informer sends out distress signal. Imp. Medium Armor Plating destroyed. Force Field destroyed. Imp. Medium Armor Plating destroyed. Acquired Maul. K-01 Serf cleans the Subcomponent Replicator. Thermal Shield destroyed. K-01 Serf cleans the Subcomponent Replicator. Map ----- +----------------------------------------------------+ | ?????????????????????????????????????????????????? | | ?????????????????????????????????????????????????? | | ########+############ ???????????????????????????? | | ??????????????????????????? | | ??????????????????????????? | | ?????????????????????????? | | ?????????????????????????? | | ?????????????????????????? | | #+######/###########?????????????????????????????? | | # #?????????????????????????????? | | "T" # #?????????????????????????????? | | " # #?????????????????????????????? | | " # #?????????????????????????????? | | " # #?????????????????????????????? | | # #?????????????????????????????? | | ! # ! #?????????????????????????????? | | # #?????????????????????????????? | | ####### ] #?????????????????????????????? | | ??????# #?????????????????????????????? | | ??????# #?????????????????????????????? | | ??????# #?????????????????????????????? | | ??????###+#####+################?????????????????? | | ??????????????# #?# ! """T""" #?????????????????? | | #####?????????# #?# #?????????????????? | | #?????# #?# ! #?????????????????? | | """ # ????# #?# s @ #?????????????????? | | ????????# ##### #?# ssgsg #?????????????????? | | ????????+ #?#######g######?????????????????? | | ????????# #??????# #????????????????????? | | ????????# ######## #????????????????????? | | ????????# #????????????????????? | | ????????# ####### #????????????????????? | | ????????####### #?????# #####????????????????? | | ??????????????# #?????# #????????????????? | | ??????????????# #?????# #????????????????? | | ######????????# #?????# w """ #????????????????? | | / #????????# #?????# """"" #????????????????? | | #????????# #?????# """"" #????????????????? | | ########## #?????# #????????????????? | | + #?????# k """ #????????????????? | | /[ ############?????# """"" #????????????????? | | /[ #????????????????# """"" #????????????????? | | /[ #????????????????# #????????????????? | | #???????????????## """ #????????????????? | | ] #????#######????+ """"" #????????????????? | | ########### #????# """"" #????????????????? | | ###### #????????????????? | | #????????????????? | | #########+## #????????????????? | | ########### #??????? ? #????????????????? | +----------------------------------------------------+ Best States ------------- Heat Dissipation 37 Energy Generation 10 Energy Capacity 250 Matter Stores 300 Matter Capacity 300 Sight Range 16 Robot Scan Range 16 Terrain Scan Density 10 Armor Coverage 450 Resistance: TH 20 Weapon Shielding 33 Evasion (%) 62 Recoil Reduction 1 Item Schematics ----------------- None Robot Schematics ------------------ None Fabricated ------------ Nothing Alien Tech Used ----------------- None Achievements -------------- None Challenges ------------ None Game ------ Seed PointyAerolevInterrupter Manual? 0 Play Time 00:30:02 Cumulative 8.3 hours Start 2021.08.05 @ 11:28:52 End 2021.08.05 @ 11:58:42 Sessions 1 Manual Loads 0 Difficulty Rogue Special Mode None Game No. 4 Rogue 4 Adventurer 0 Explorer 0 Win Type - Total 0 Types 0/0/0/0/0/0/0/0/0 Lore% 5 Gallery% 12 Achievement% 12 Wizard Run 0 Options --------- ASCII 0 Keyboard 0 Movement Mouse Keybinds 0 Fullscreen 1 Font 24/Terminus Map View 76x50 Tactical HUD 0 Map Filters NONE Filters NONE Steam 1 RUN: 7516ac69-9511-44ae-bcb1-605df6f71cd5